fUST/lending_fUST_20250707
["ID","MTS","AMOUNT","RATE_DAILY","PERIOD"]
[370051479,1751866155146,-460.0,0.00017029,2]
[370051480,1751866155170,-460.0,0.00017029,2]
[370051481,1751866155192,-460.0,0.00017029,2]
[370051482,1751866155214,-460.0,0.00017029,2]
[370051483,1751866155237,-460.0,0.00017029,2]
[370051484,1751866155257,-467.92162325,0.00017029,2]
[370051485,1751866155277,-500.0,0.00017031,2]
[370051486,1751866155298,-462.5511712,0.00017031,2]
[370051487,1751866155319,-203.91261954,0.00017031,2]
[370051488,1751866155340,-465.25512737,0.00017031,2]
[370051489,1751866155360,-464.33728114,0.00017031,2]
[370051490,1751866155380,-460.0,0.00017031,2]
[370051491,1751866155401,-467.37268522,0.00017031,2]
[370051492,1751866155421,-460.0,0.00017031,2]
[370051493,1751866155442,-467.1786635,0.00017031,2]
[370051494,1751866155464,-460.0,0.00017031,2]
[370051495,1751866155486,-460.0,0.00017031,2]
[370051496,1751866155506,-460.0,0.00017031,2]
[370051497,1751866155527,-460.0,0.00017031,2]
[370051498,1751866155548,-460.0,0.00017031,2]
[370051499,1751866155569,-460.0,0.00017031,2]
[370051500,1751866155590,-636.65982329,0.00017073,2]
[370051501,1751866155610,-269.68489418,0.00017073,2]
[370051502,1751866155630,-500.0,0.00017073,2]
[370051503,1751866155650,-500.0,0.00017073,2]
[370051504,1751866155671,-500.83197008,0.00017073,2]
[370051505,1751866155690,-500.0,0.00017073,2]
[370051506,1751866155710,-500.0,0.00017073,2]
[370051507,1751866155731,-500.54433181,0.00017073,2]
[370051508,1751866155751,-503.24918739,0.00017073,2]
[370051509,1751866155772,-60.99090496,0.00017073,2]
[370051510,1751866156095,-460.0,0.00017026,2]
[370051511,1751866156116,-460.0,0.00017026,2]
[370051512,1751866156136,-439.00909504,0.00017073,2]
[370051513,1751866156167,-251.75809991,0.00017073,2]
[370051514,1751866156194,-500.0,0.00017073,2]
[370051515,1751866156220,-232.02852266,0.00017073,2]
[370051516,1751866165206,-460.0,0.00017025,2]
[370051517,1751866165233,-460.0,0.00017025,2]
[370051518,1751866165260,-560.69404477,0.00017025,2]
[370051519,1751866165289,-460.0,0.00017027,2]
[370051520,1751866165315,-460.0,0.00017029,2]
[370051521,1751866165339,-267.97147734,0.00017073,2]
[370051522,1751866165366,-340.2086482,0.00017073,2]
[370051523,1751866165393,-500.0,0.00017073,2]
[370051524,1751866165417,-500.56180625,0.00017073,2]
[370051525,1751866165441,-1645.62114258,0.00017203,2]
[370051526,1751866165466,-460.0,0.00017299,2]
[370051527,1751866165495,-460.0,0.00017299,2]
[370051528,1751866165519,-460.0,0.00017299,2]
[370051529,1751866165543,-489.8607852,0.00017299,2]
[370051530,1751866165569,-460.0,0.00017299,2]
[370051531,1751866165593,-460.0,0.000173,2]
[370051532,1751866165619,-540.0,0.000173,2]
[370051533,1751866165647,-460.0,0.000173,2]
[370051534,1751866165669,-462.65508445,0.000173,2]
[370051535,1751866165692,-348.49368563,0.000173,2]
[370051536,1751866165713,-962.84,0.000173,2]
[370051537,1751866165735,-516.24031067,0.000173,2]
[370051538,1751866165757,-460.0,0.000173,2]
[370051539,1751866165782,-460.0,0.000173,2]
[370051540,1751866165804,-460.0,0.000173,2]
[370051541,1751866165824,-460.0,0.000173,2]
[370051542,1751866165845,-312.86195003,0.000173,2]
[370051543,1751866166055,-644.53,0.000173,2]
[370051544,1751866166083,-460.0,0.000173,2]
[370051545,1751866166102,-460.0,0.000173,2]
[370051546,1751866166124,-460.0,0.000173,2]
[370051547,1751866166148,-199.2,0.000173,2]
[370051548,1751866166173,-460.0,0.000173,2]
[370051549,1751866166198,-460.0,0.000173,2]
[370051550,1751866166218,-460.0,0.000173,2]
[370051551,1751866166238,-460.0,0.000173,2]
[370051552,1751866166259,-460.0,0.000173,2]
[370051553,1751866166280,-460.0,0.000173,2]
[370051554,1751866166300,-462.36673577,0.00017301,2]
[370051555,1751866166320,-460.0,0.00017301,2]
[370051556,1751866166340,-460.0,0.00017301,2]
[370051557,1751866166361,-460.0,0.00017301,2]
[370051558,1751866166383,-460.62639591,0.00017301,2]
[370051559,1751866166405,-382.82030276,0.00017301,2]
[370051560,1751866166425,-460.0,0.00017301,2]
[370051561,1751866166446,-460.0,0.00017301,2]
[370051562,1751866166467,-379.79582253,0.00017301,2]
[370051563,1751866166488,-460.0,0.00017301,2]
[370051564,1751866166510,-460.0,0.00017301,2]
[370051565,1751866166532,-460.0,0.00017301,2]
[370051566,1751866166553,-460.0,0.00017301,2]
[370051567,1751866166575,-460.0,0.00017301,2]
[370051568,1751866166597,-460.0,0.00017301,2]
[370051569,1751866166618,-460.0,0.00017301,2]
[370051570,1751866166643,-486.23953502,0.00017301,2]
[370051571,1751866166663,-460.0,0.00017301,2]
[370051572,1751866166685,-460.0,0.00017301,2]
[370051573,1751866166706,-460.0,0.00017301,2]
[370051574,1751866166728,-453.14453504,0.00017301,2]
[370051575,1751866166748,-460.0,0.00017301,2]
[370051576,1751866166768,-460.0,0.00017301,2]
[370051577,1751866166789,-460.0,0.00017301,2]
[370051578,1751866166809,-460.0,0.00017301,2]
[370051579,1751866166829,-460.0,0.00017301,2]
[370051580,1751866166849,-460.0,0.00017301,2]
[370051581,1751866166870,-2011.92,0.00017301,2]
[370051582,1751866166890,-460.0,0.00017301,2]
[370051583,1751866166910,-499.81807474,0.00017301,2]
[370051584,1751866166930,-460.0,0.00017301,2]
[370051585,1751866166950,-460.0,0.00017301,2]
[370051586,1751866166972,-460.0,0.00017301,2]
[370051587,1751866166994,-475.26591393,0.00017301,2]
[370051588,1751866167016,-215.39311771,0.00017301,2]
[370051589,1751866167037,-460.0,0.00017301,2]
[370051590,1751866167058,-460.0,0.00017301,2]
[370051591,1751866167079,-460.0,0.00017301,2]
[370051592,1751866167098,-460.0,0.00017301,2]
[370051593,1751866167118,-460.0,0.00017301,2]
[370051594,1751866167138,-460.0,0.00017301,2]
[370051595,1751866167158,-460.0,0.00017301,2]
[370051596,1751866167178,-460.0,0.00017301,2]
[370051597,1751866167198,-470.91816532,0.00017301,2]
[370051598,1751866167220,-460.0,0.00017301,2]
[370051599,1751866167244,-460.0,0.00017301,2]
[370051600,1751866167267,-460.0,0.00017301,2]
[370051601,1751866167288,-464.26759024,0.00017302,2]
[370051602,1751866167310,-435.98862857,0.00017302,2]
[370051603,1751866167331,-460.0,0.00017302,2]
[370051604,1751866167352,-460.0,0.00017302,2]
[370051605,1751866167376,-460.0,0.00017302,2]
[370051606,1751866167399,-2011.92,0.00017302,2]
[370051607,1751866167418,-460.0,0.00017303,2]
[370051608,1751866167438,-460.0,0.00017303,2]
[370051609,1751866167458,-460.0,0.00017303,2]
[370051610,1751866167478,-460.0,0.00017303,2]
[370051611,1751866167500,-460.0,0.00017303,2]
[370051612,1751866167521,-462.36,0.00017303,2]
[370051613,1751866167541,-460.0,0.00017303,2]
[370051614,1751866167561,-460.0,0.00017303,2]
[370051615,1751866167583,-460.0,0.00017303,2]
[370051616,1751866167603,-460.0,0.00017303,2]
[370051617,1751866167624,-216.77210225,0.00017303,2]
[370051618,1751866167644,-461.45958785,0.00017303,2]
[370051619,1751866167665,-462.14498283,0.00017303,2]
[370051620,1751866167686,-466.40900577,0.00017303,2]
[370051621,1751866167706,-460.0,0.00017303,2]
[370051622,1751866167728,-636.5,0.00017303,2]
[370051623,1751866167750,-460.0,0.00017303,2]
[370051624,1751866167772,-2011.92,0.00017303,2]
[370051625,1751866167794,-460.0,0.00017303,2]
[370051626,1751866167814,-460.0,0.00017303,2]
[370051627,1751866167835,-477.84354958,0.00017303,2]
[370051628,1751866167856,-460.0,0.00017303,2]
[370051629,1751866167877,-460.0,0.00017303,2]
[370051630,1751866167898,-460.0,0.00017303,2]
[370051631,1751866167920,-460.0,0.00017303,2]
[370051632,1751866167940,-460.0,0.00017303,2]
[370051633,1751866167960,-471.08767975,0.00017303,2]
[370051634,1751866167981,-460.0,0.00017303,2]
[370051635,1751866168002,-460.0,0.00017303,2]
[370051636,1751866168023,-460.0,0.00017303,2]
[370051637,1751866168043,-504.49824811,0.00017305,2]
[370051638,1751866168063,-542.33713892,0.00017305,2]
[370051639,1751866168083,-460.0,0.00017573,2]
[370051640,1751866168104,-460.0,0.00017573,2]
[370051641,1751866168126,-460.0,0.00017574,2]
[370051642,1751866168148,-962.84,0.00017574,2]
[370051643,1751866168169,-460.0,0.00017574,2]
[370051644,1751866168191,-460.0,0.00017574,2]
[370051645,1751866168211,-430.3449719,0.00017574,2]
[370051646,1751866168232,-460.0,0.00017574,2]
[370051647,1751866168254,-644.53,0.00017574,2]
[370051648,1751866168274,-460.0,0.00017574,2]
[370051649,1751866168294,-460.0,0.00017574,2]
[370051650,1751866168316,-460.0,0.00017574,2]
[370051651,1751866168337,-460.0,0.00017574,2]
[370051652,1751866168358,-460.0,0.00017574,2]
[370051653,1751866168379,-460.0,0.00017574,2]
[370051654,1751866168400,-460.0,0.00017574,2]
[370051655,1751866168421,-460.0,0.00017575,2]
[370051656,1751866168442,-460.0,0.00017575,2]
[370051657,1751866168462,-460.0,0.00017575,2]
[370051658,1751866168483,-460.0,0.00017575,2]
[370051659,1751866168505,-460.0,0.00017575,2]
[370051660,1751866168634,-460.0,0.00017575,2]
[370051661,1751866168656,-460.0,0.00017575,2]
[370051662,1751866168679,-460.0,0.00017575,2]
[370051663,1751866168701,-460.0,0.00017575,2]
[370051664,1751866168722,-601.92313938,0.00017575,2]
[370051665,1751866168743,-460.0,0.00017575,2]
[370051666,1751866168764,-460.0,0.00017575,2]
[370051667,1751866168784,-460.0,0.00017575,2]
[370051668,1751866168804,-460.0,0.00017575,2]
[370051669,1751866168825,-503.7352821,0.00017575,2]
[370051670,1751866168846,-460.0,0.00017575,2]
[370051671,1751866168866,-460.0,0.00017575,2]
[370051672,1751866168886,-460.0,0.00017575,2]
[370051673,1751866168908,-473.04137287,0.00017575,2]
[370051674,1751866168930,-597.40795535,0.00017575,2]
[370051675,1751866168951,-462.72400672,0.00017575,2]
[370051676,1751866168975,-460.0,0.00017575,2]
[370051677,1751866168996,-460.0,0.00017575,2]
[370051678,1751866169017,-460.0,0.00017575,2]
[370051679,1751866169038,-460.0,0.00017576,2]
[370051680,1751866169061,-2011.92,0.00017576,2]
[370051681,1751866169086,-463.81099547,0.00017577,2]
[370051682,1751866169108,-460.0,0.00017577,2]
[370051683,1751866169130,-465.65196846,0.00017577,2]
[370051684,1751866169150,-460.0,0.00017577,2]
[370051685,1751866169171,-469.536146,0.00017577,2]
[370051686,1751866169195,-636.5,0.00017577,2]
[370051687,1751866169218,-460.0,0.00017577,2]
[370051688,1751866169240,-460.0,0.00017577,2]
[370051689,1751866169264,-460.0,0.00017577,2]
[370051690,1751866169285,-460.0,0.00017577,2]
[370051691,1751866169307,-460.0,0.00017577,2]
[370051692,1751866169329,-460.0,0.00017577,2]
[370051693,1751866169350,-460.0,0.00017577,2]
[370051694,1751866169371,-460.0,0.00017577,2]
[370051695,1751866169392,-460.0,0.00017577,2]
[370051696,1751866169412,-502.03141237,0.00017621,2]
[370051697,1751866169434,-500.0,0.00017621,2]
[370051698,1751866169454,-501.12121706,0.00017621,2]
[370051699,1751866169474,-1000.0,0.00017621,2]
[370051700,1751866169495,-287.85,0.00017847,2]
[370051701,1751866169516,-460.0,0.00017847,2]
[370051702,1751866169539,-460.0,0.00017848,2]
[370051703,1751866169562,-962.84,0.00017848,2]
[370051704,1751866169583,-460.0,0.00017848,2]
[370051705,1751866169606,-460.0,0.00017848,2]
[370051706,1751866169627,-644.53,0.00017848,2]
[370051707,1751866169649,-460.0,0.00017848,2]
[370051708,1751866169671,-460.0,0.00017848,2]
[370051709,1751866169695,-240.89852275,0.00017848,2]
[370051710,1751866169718,-460.0,0.00017848,2]
[370051711,1751866169740,-460.0,0.00017848,2]
[370051712,1751866169762,-460.0,0.00017848,2]
[370051713,1751866169785,-460.0,0.00017848,2]
[370051714,1751866169805,-62.38951758,0.00017849,2]
[370051715,1751866170160,-460.0,0.00017026,2]
[370051716,1751866170182,-441.6,0.00017029,2]
[370051718,1751866178533,1040.90991802,0.0002735,120]
[370051764,1751866232401,-300.0,0.00017025,2]
[370051766,1751866232411,-460.0,0.00017025,2]
[370051768,1751866232421,-1200.0,0.00017025,2]
[370051770,1751866232431,-809.94,0.00017025,2]
[370051772,1751866232440,-460.0,0.00017025,2]
[370051774,1751866232450,-460.0,0.00017026,2]
[370051776,1751866232459,-460.0,0.00017026,2]
[370051779,1751866232468,-460.0,0.00017026,2]
[370051782,1751866232477,-460.0,0.00017026,2]
[370051785,1751866232487,-460.0,0.00017026,2]
[370051788,1751866232496,-520.78,0.00017026,2]
[370051791,1751866232505,-460.0,0.00017026,2]
[370051794,1751866232515,-460.0,0.00017026,2]
[370051796,1751866232524,-460.0,0.00017027,2]
[370051799,1751866232534,-460.0,0.00017027,2]
[370051802,1751866232543,-460.0,0.00017027,2]
[370051805,1751866232552,-545.57343291,0.00017027,2]
[370051808,1751866232562,-460.0,0.00017027,2]
[370051811,1751866232571,-460.0,0.00017027,2]
[370051814,1751866232580,-460.0,0.00017027,2]
[370051816,1751866232589,-460.0,0.00017027,2]
[370051818,1751866232598,-460.0,0.00017027,2]
[370051820,1751866232608,-460.0,0.00017027,2]
[370051822,1751866232618,-18.4,0.00017029,2]
[370051824,1751866232627,-774.34,0.00017029,2]
[370051826,1751866232636,-160.13864719,0.00017201,2]
[370051828,1751866232646,-460.0,0.00017299,2]
[370051830,1751866232657,-809.94,0.00017299,2]
[370051832,1751866232672,-460.0,0.00017299,2]
[370051834,1751866232681,-460.0,0.000173,2]
[370051836,1751866232690,-460.0,0.000173,2]
[370051838,1751866232701,-460.0,0.000173,2]
[370051840,1751866232711,-460.0,0.000173,2]
[370051842,1751866232720,-195.76260256,0.00017301,2]
[370051844,1751866232730,-464.47,0.00017301,2]
[370051846,1751866232739,-774.34,0.00017303,2]
[370051848,1751866232748,-460.0,0.00017573,2]
[370051850,1751866232758,-809.94,0.00017573,2]
[370051852,1751866232767,-152.02457431,0.00017573,2]
[370051854,1751866232777,-460.0,0.00017574,2]
[370051856,1751866232787,-460.0,0.00017574,2]
[370051858,1751866232796,-168.19027879,0.00017574,2]
[370051878,1751866232968,-460.0,0.00017577,2]
[370051880,1751866232983,-774.34,0.00017577,2]
[370051882,1751866232993,-460.0,0.00017847,2]
[370051884,1751866233002,-809.94,0.00017847,2]
[370051886,1751866233012,-460.0,0.00017848,2]
[370051888,1751866233021,-397.61048242,0.00017849,2]
[370051891,1751866233031,-460.0,0.00017849,2]
[370051893,1751866233040,-460.0,0.00017849,2]
[370051895,1751866233049,-460.0,0.00017849,2]
[370051897,1751866233058,-460.0,0.00017849,2]
[370051899,1751866233068,-460.0,0.00017849,2]
[370051901,1751866233079,-476.47802976,0.00017849,2]
[370051903,1751866233089,-460.0,0.00017849,2]
[370051905,1751866233098,-460.0,0.00017849,2]
[370051907,1751866233108,-460.0,0.00017849,2]
[370051909,1751866233117,-460.0,0.00017849,2]
[370051911,1751866233127,-460.0,0.00017849,2]
[370051913,1751866233136,-460.0,0.0001785,2]
[370051915,1751866233145,-460.0,0.00017851,2]
[370051917,1751866233155,-636.5,0.00017851,2]
[370051919,1751866233164,-460.0,0.00017851,2]
[370051921,1751866233174,-2011.92,0.00017851,2]
[370051923,1751866233183,-460.0,0.00017851,2]
[370051925,1751866233193,-301.55,0.00017851,2]
[370051927,1751866233202,-460.0,0.00017851,2]
[370051929,1751866233211,-460.0,0.00017851,2]
[370051931,1751866233221,-460.0,0.00017851,2]
[370051933,1751866233230,-460.0,0.00017851,2]
[370051935,1751866233240,-774.34,0.00017851,2]
[370051937,1751866233249,-171.0815,0.00018,2]
[370051939,1751866233258,-460.0,0.00018121,2]
[370051941,1751866233267,-460.0,0.00018121,2]
[370051943,1751866233277,-809.94,0.00018121,2]
[370051945,1751866233286,-460.0,0.00018122,2]
[370051947,1751866233296,-644.53,0.00018122,2]
[370051949,1751866233305,-460.0,0.00018122,2]
[370051951,1751866233315,-460.0,0.00018122,2]
[370051954,1751866233324,-460.0,0.00018122,2]
[370051956,1751866233333,-460.0,0.00018122,2]
[370051958,1751866233343,-460.0,0.00018122,2]
[370051960,1751866233352,-460.0,0.00018122,2]
[370051962,1751866233360,-471.08916622,0.00018123,2]
[370051963,1751866233369,-460.0,0.00018123,2]
[370051966,1751866233379,-460.0,0.00018123,2]
[370051968,1751866233388,-460.0,0.00018123,2]
[370051970,1751866233397,-460.0,0.00018123,2]
[370051972,1751866233406,-460.0,0.00018123,2]
[370051974,1751866233415,-460.0,0.00018123,2]
[370051975,1751866233425,-460.0,0.00018123,2]
[370051977,1751866233435,-586.45707663,0.00018124,2]
[370051979,1751866233445,-460.0,0.00018125,2]
[370051981,1751866233454,-636.5,0.00018125,2]
[370051983,1751866233463,-175.64,0.00018125,2]
[370051985,1751866233474,-469.84375204,0.00018125,2]
[370051987,1751866233484,-460.0,0.00018125,2]
[370051989,1751866233494,-460.0,0.00018125,2]
[370051991,1751866233504,-460.0,0.00018125,2]
[370051993,1751866233514,-460.0,0.00018125,2]
[370051995,1751866233523,-774.34,0.00018125,2]
[370051997,1751866233532,-460.0,0.00018395,2]
[370051999,1751866233542,-460.0,0.00018395,2]
[370052001,1751866233552,-809.94,0.00018395,2]
[370052003,1751866233562,-460.0,0.00018396,2]
[370052005,1751866233572,-644.53,0.00018396,2]
[370052007,1751866233582,-460.0,0.00018396,2]
[370052009,1751866233591,-460.0,0.00018396,2]
[370052011,1751866233601,-460.0,0.00018396,2]
[370052013,1751866233611,-292.13,0.00018396,2]
[370052015,1751866233621,-460.0,0.00018396,2]
[370052017,1751866233630,-460.0,0.00018396,2]
[370052019,1751866233640,-464.48924196,0.00018397,2]
[370052021,1751866233649,-460.0,0.00018397,2]
[370052023,1751866233664,-460.0,0.00018397,2]
[370052025,1751866233673,-460.0,0.00018397,2]
[370052027,1751866233683,-460.0,0.00018397,2]
[370052029,1751866233692,-303.72,0.00018397,2]
[370052031,1751866233702,-460.0,0.00018397,2]
[370052033,1751866233712,-171.53197616,0.00018399,2]
[370052035,1751866233722,-636.5,0.00018399,2]
[370052037,1751866233732,-2011.92,0.00018399,2]
[370052039,1751866233741,-460.0,0.00018399,2]
[370052041,1751866233751,-460.0,0.00018399,2]
[370052043,1751866233761,-460.0,0.00018399,2]
[370052045,1751866233771,-460.0,0.00018399,2]
[370052047,1751866233780,-774.34,0.00018399,2]
[370052050,1751866233791,-2011.92,0.0001842,2]
[370052051,1751866233801,-2011.92,0.0001842,2]
[370052054,1751866233810,-460.0,0.00018421,2]
[370052056,1751866233820,-460.0,0.00018421,2]
[370052058,1751866233830,-460.0,0.00018421,2]
[370052060,1751866233839,-460.0,0.00018421,2]
[370052062,1751866233849,-460.0,0.00018421,2]
[370052064,1751866233858,-460.0,0.00018421,2]
[370052066,1751866233867,-460.0,0.00018421,2]
[370052068,1751866233876,-460.0,0.00018421,2]
[370052070,1751866233886,-468.50037143,0.00018421,2]
[370052072,1751866233896,-470.97988062,0.00018421,2]
[370052074,1751866233905,-460.0,0.00018421,2]
[370052076,1751866233915,-470.23356533,0.00018421,2]
[370052078,1751866233924,-467.97520851,0.00018421,2]
[370052080,1751866233934,-460.0,0.00018421,2]
[370052082,1751866233944,-500.0,0.00018421,2]
[370052084,1751866233953,-460.0,0.00018421,2]
[370052086,1751866233963,-315.01306654,0.00018421,2]
[370052088,1751866233972,-460.0,0.00018421,2]
[370052090,1751866233982,-460.0,0.00018421,2]
[370052092,1751866233991,-420.0,0.00018595,2]
[370052094,1751866234000,-460.0,0.00018669,2]
[370052096,1751866234010,-460.0,0.00018669,2]
[370052098,1751866234020,-809.94,0.00018669,2]
[370052100,1751866234030,-460.0,0.0001867,2]
[370052102,1751866234040,-644.53,0.0001867,2]
[370052104,1751866234050,-460.0,0.0001867,2]
[370052106,1751866234059,-460.0,0.0001867,2]
[370052108,1751866234068,-460.0,0.0001867,2]
[370052110,1751866234077,-460.0,0.0001867,2]
[370052112,1751866234086,-460.0,0.0001867,2]
[370052114,1751866234095,-460.0,0.00018671,2]
[370052116,1751866234105,-460.0,0.00018671,2]
[370052118,1751866234115,-241.40665662,0.00018671,2]
[370052120,1751866234124,-460.0,0.00018671,2]
[370052122,1751866234134,-636.5,0.00018673,2]
[370052124,1751866234143,-2011.92,0.00018673,2]
[370052126,1751866234153,-240.0,0.00018673,2]
[370052128,1751866234162,-460.0,0.00018673,2]
[370052130,1751866234172,-197.82,0.00018673,2]
[370052132,1751866234182,-774.34,0.00018673,2]
[370052134,1751866234191,-460.0,0.00018674,2]
[370052136,1751866234201,-460.0,0.00018674,2]
[370052138,1751866234210,-461.64054771,0.00018674,2]
[370052140,1751866234220,-464.07447184,0.00018674,2]
[370052142,1751866234229,-463.27515092,0.00018674,2]
[370052144,1751866234238,-460.87764905,0.00018674,2]
[370052146,1751866234247,-312.10085466,0.00018674,2]
[370052148,1751866234256,-461.36575225,0.00018674,2]
[370052150,1751866234265,-460.0,0.00018674,2]
[370052152,1751866234274,-461.22731186,0.00018674,2]
[370052155,1751866234284,-461.22862324,0.00018674,2]
[370052156,1751866234293,-460.0,0.00018674,2]
[370052159,1751866234303,-460.0,0.00018674,2]
[370052161,1751866234312,-461.16927366,0.00018674,2]
[370052163,1751866234321,-460.0,0.00018674,2]
[370052164,1751866234330,-460.0,0.00018674,2]
[370052167,1751866234340,-460.0,0.00018674,2]
[370052168,1751866234349,-460.0,0.00018674,2]
[370052170,1751866234358,-460.0,0.00018674,2]
[370052172,1751866234368,-1645.62114256,0.00018682,2]
[370052174,1751866234377,-300.0,0.00018687,2]
[370052176,1751866234386,-2011.92,0.00018694,2]
[370052178,1751866234395,-460.0,0.00018695,2]
[370052180,1751866234405,-460.0,0.00018695,2]
[370052181,1751866234415,-460.0,0.00018695,2]
[370052184,1751866234424,-460.0,0.00018695,2]
[370052185,1751866234433,-335.27262148,0.00018695,2]
[370052187,1751866234443,-460.0,0.00018695,2]
[370052189,1751866234453,-1546.12331583,0.000189,2]
[370052191,1751866234462,-460.0,0.00018943,2]
[370052193,1751866234472,-460.0,0.00018943,2]
[370052195,1751866234481,-809.94,0.00018943,2]
[370052196,1751866234491,-460.0,0.00018944,2]
[370052198,1751866234500,-644.53,0.00018944,2]
[370052200,1751866234511,-460.0,0.00018944,2]
[370052202,1751866234521,-460.0,0.00018944,2]
[370052203,1751866234531,-460.0,0.00018944,2]
[370052204,1751866234543,-275.64650802,0.00018944,2]
[370052205,1751866234553,-498.37170073,0.00018944,2]
[370052206,1751866234563,-438.63622729,0.00018945,2]
[370052207,1751866234574,-460.0,0.00018945,2]
[370052208,1751866234584,-636.5,0.00018947,2]
[370052209,1751866234593,-460.0,0.00018947,2]
[370052210,1751866234602,-774.34,0.00018947,2]
[370052211,1751866234612,-460.0,0.00018948,2]
[370052212,1751866234622,-460.0,0.00018948,2]
[370052213,1751866234631,-460.0,0.00018948,2]
[370052214,1751866234640,-460.0,0.00018948,2]
[370052215,1751866234650,-471.46,0.00018948,2]
[370052216,1751866234663,-460.0,0.00018969,2]
[370052217,1751866234673,-460.0,0.00018969,2]
[370052218,1751866234682,-460.0,0.00018969,2]
[370052219,1751866234691,-460.0,0.00018969,2]
[370052220,1751866234703,-359.51465612,0.0001912,2]
[370052221,1751866234712,-1546.12331568,0.00019141,2]
[370052222,1751866234722,-333.426875,0.00019178,2]
[370052223,1751866234732,-666.0,0.00019178,2]
[370052224,1751866234741,-460.0,0.00019217,2]
[370052225,1751866234751,-460.0,0.00019217,2]
[370052226,1751866234760,-809.94,0.00019217,2]
[370052227,1751866234769,-165.02259118,0.00019218,2]
[370052228,1751866234779,-644.53,0.00019218,2]
[370052229,1751866234789,-460.0,0.00019218,2]
[370052230,1751866234798,-288.27352261,0.00019218,2]
[370052231,1751866234807,-460.0,0.00019218,2]
[370052232,1751866234817,-636.5,0.00019221,2]
[370052233,1751866234827,-2011.92,0.00019221,2]
[370052234,1751866234837,-460.0,0.00019221,2]
[370052235,1751866234847,-774.34,0.00019221,2]
[370052236,1751866234857,-462.53014485,0.00019222,2]
[370052237,1751866234872,-410.7743714,0.00019222,2]
[370052238,1751866234881,-462.07731008,0.00019222,2]
[370052239,1751866234891,-460.0,0.00019222,2]
[370052240,1751866234900,-460.0,0.00019243,2]
[370052241,1751866234910,-518.82,0.00019243,2]
[370052242,1751866234919,-500.0,0.00019273,2]
[370052243,1751866234928,-160.2217902,0.00019273,2]
[370052244,1751866234938,-407.77750819,0.00019273,2]
[370052245,1751866234947,-500.0,0.00019273,2]
[370052246,1751866234957,-500.0,0.00019273,2]
[370052247,1751866234966,-501.41591202,0.00019273,2]
[370052248,1751866234975,-500.0,0.00019273,2]
[370052249,1751866234984,-2011.92,0.00019282,2]
[370052250,1751866234994,-2011.92,0.00019282,2]
[370052251,1751866235003,-2011.92,0.00019282,2]
[370052252,1751866235013,-2011.92,0.00019282,2]
[370052253,1751866235023,-2011.92,0.00019282,2]
[370052254,1751866235032,-2011.92,0.00019282,2]
[370052255,1751866235041,-2011.92,0.00019282,2]
[370052256,1751866235051,-2011.92,0.00019282,2]
[370052257,1751866235061,-2012.07909378,0.00019282,2]
[370052258,1751866235070,-266521.56779849,0.00019283,2]